bitfinex-derivatives/quotes_ETHF0:USTF0_20241105
["timestamp","ask_amount","ask_price","bid_price","bid_amount"]
[1730832667949,8.15554005,2452.3,2451.9,4.29070525]
[1730832668155,2.09179878,2452.2,2452.1,0.40782]
[1730832668357,0.20397147,2452.2,2452.1,3.61562]
[1730832668558,0.20397147,2452.2,2452.1,8.80202]
[1730832668759,0.20397147,2452.3,2452.1,8.80203]
[1730832669060,0.20397147,2452.2,2452.1,4.72363]
[1730832669257,0.20397147,2452.4,2452.1,4.72363]
[1730832669460,2.0914571,2452.4,2452.2,0.40781]
[1730832669663,0.20395973,2452.3,2452.1,4.3158]
[1730832669861,0.20395669,2452.2,2452.1,4.72363]
[1730832670058,41.8762,2452.5,2452.4,0.40778]
[1730832670361,3.16764015,2452.5,2452.4,0.40778]
[1730832670765,1.28014431,2452.5,2452.4,0.40778]
[1730832673863,0.20394431,2452.5,2452.4,0.40778]
[1730832674061,0.20394431,2452.5,2452.4,10.87588525]
[1730832674362,43.43874005,2453.1,2452.6,0.40775]
[1730832674668,5.3927,2453.2,2453.1,0.40766]
[1730832674967,2.1849,2453.2,2453.1,0.40766]
[1730832675155,2.63874005,2453.5,2453.0,6.39050525]
[1730832675360,3.2078,2453.7,2453.3,3.59032525]
[1730832675361,2.63874005,2453.6,2453.3,3.59032525]
[1730832675669,5.82697,2453.7,2453.3,3.59032525]
[1730832675858,8.05814005,2453.7,2453.3,3.18270525]
[1730832676060,5.4194,2453.7,2453.4,0.4076]
[1730832676259,0.40758,2453.6,2453.2,0.40764]
[1730832676459,41.20758,2453.6,2453.2,0.40764]
[1730832676763,0.40763,2453.4,2453.0,3.61548]
[1730832676961,40.8,2453.6,2453.0,3.61548]
[1730832676962,1.06342852,2453.1,2453.0,3.61548]
[1730832677164,1.1203,2453.3,2453.0,3.2078]
[1730832677467,1.06310633,2453.1,2453.0,3.61548]
[1730832678965,1.06310633,2453.1,2453.0,3.2078]
[1730832679371,1.06310633,2453.1,2453.0,3.61548]
[1730832679772,1.06310633,2453.1,2453.0,6.79818525]
[1730832679960,2.15440633,2453.2,2453.1,0.40766]
[1730832681374,1.06310633,2453.2,2453.1,4.48366]
[1730832681672,41.86310633,2453.5,2453.4,0.40761]
[1730832681867,3.21360633,2453.6,2453.5,0.4076]
[1730832682070,2.1505,2453.6,2453.5,0.4076]
[1730832682267,42.9505,2453.6,2453.5,0.4076]
[1730832683063,42.9505,2453.6,2453.3,7.49750525]
[1730832683461,44.01360633,2453.6,2453.3,7.49750525]
[1730832683663,42.9505,2453.6,2453.4,0.40761]
[1730832684264,42.9505,2453.6,2453.5,0.4076]
[1730832685176,42.9505,2453.6,2453.3,7.49750525]
[1730832685375,42.9505,2453.6,2453.4,0.40761]
[1730832685967,42.9505,2453.6,2453.3,7.49750525]
[1730832686168,42.9505,2453.6,2453.4,0.4076]
[1730832686370,42.9505,2453.6,2453.5,0.4076]
[1730832686571,43.35808,2453.6,2453.4,0.40761]
[1730832687275,42.9505,2453.6,2453.5,0.4076]
[1730832688772,40.8,2453.6,2453.5,0.4076]
[1730832688978,6.54170633,2453.9,2453.8,0.40755]
[1730832689474,47.34170633,2453.9,2453.7,0.40755]
[1730832689880,47.34170633,2453.9,2453.5,3.18270525]
[1730832690082,44.54144633,2453.9,2453.6,0.40757]
[1730832690475,43.47834,2453.9,2453.6,0.40757]
[1730832690977,43.0708,2453.9,2453.5,3.18270525]
[1730832691272,2.2708,2453.9,2453.8,0.40755]
[1730832692284,40.8,2454.0,2453.5,3.18270525]
[1730832692574,40.8,2454.0,2453.9,0.40753]
[1730832692774,40.8,2454.0,2453.8,0.40754]
[1730832692975,1.0718,2453.9,2453.7,3.61536]
[1730832693173,1.1018,2453.8,2453.7,3.61536]
[1730832694774,1.1018,2453.8,2453.7,3.2078]
[1730832695782,1.50935,2453.8,2453.7,3.2078]
[1730832696184,1.1018,2453.8,2453.7,3.2078]
[1730832696387,1.50935,2453.8,2453.7,3.2078]
[1730832696889,1.1018,2453.8,2453.7,3.2078]
[1730832697180,1.50935,2453.8,2453.6,0.40757]
[1730832697381,1.1018,2453.8,2453.5,3.18270525]
[1730832697582,1.1018,2453.8,2453.7,0.40756]
[1730832697788,1.50935,2453.8,2453.7,0.40756]
[1730832697976,1.1018,2453.8,2453.7,0.40756]
[1730832698180,1.1018,2453.8,2453.7,3.61536]
[1730832698794,1.0718,2453.9,2453.8,0.40755]
[1730832699395,1.06310633,2454.5,2454.3,0.40746]
[1730832699594,0.40743,2454.5,2454.2,0.40747]
[1730832699787,1.0754,2454.6,2454.3,0.40746]
[1730832700093,41.8754,2454.6,2454.3,3.59016525]
[1730832700286,42.28281,2454.6,2454.3,3.59016525]
[1730832701095,3.2078,2454.5,2454.3,3.59016525]
[1730832701300,40.8,2454.6,2454.5,0.40743]
[1730832701596,40.8,2454.6,2454.4,1.47014]
[1730832701893,0.4074,2454.7,2454.4,1.47014]
[1730832702287,41.2074,2454.7,2454.4,1.47014]
[1730832702483,41.2074,2454.7,2454.2,3.61527]
[1730832702484,0.40743,2454.5,2454.2,3.61527]
[1730832702697,1.0796,2454.4,2454.3,0.40746]
[1730832703088,1.0796,2454.4,2454.2,3.61527]
[1730832703284,1.0923,2454.3,2454.2,3.61527]
[1730832703488,1.0923,2454.3,2454.2,4.72227]
[1730832704794,1.0923,2454.3,2454.2,4.72228]
[1730832706601,1.0923,2454.3,2454.2,4.3148]
[1730832706903,1.0923,2454.3,2454.2,4.72228]
[1730832707998,1.0923,2454.3,2454.2,3.61528]
[1730832708200,1.0923,2454.3,2454.0,1.51451]
[1730832708201,0.40749,2454.2,2454.0,1.51451]
[1730832708688,1.49977,2454.3,2454.1,0.40748]
[1730832709704,0.40748,2454.2,2454.1,0.40748]
[1730832709997,1.0923,2454.3,2454.2,0.40748]
[1730832710588,5.1667,2454.3,2454.2,0.40748]
[1730832711195,1.0923,2454.3,2454.2,0.40748]
[1730832711599,1.49977,2454.3,2454.1,0.40748]
[1730832712096,0.4075,2454.1,2453.9,3.61532]
[1730832712304,4.3001,2454.3,2454.0,0.4075]
[1730832712305,4.70758,2454.3,2454.0,0.4075]
[1730832712605,4.70758,2454.3,2453.9,3.2078]
[1730832712606,4.70756,2454.3,2454.1,3.59019525]
[1730832712792,1.0923,2454.3,2454.1,3.18270525]
[1730832713097,1.0923,2454.3,2454.2,0.40748]
[1730832713695,1.0923,2454.3,2454.1,3.18270525]
[1730832713903,1.49976,2454.3,2454.1,0.40749]
[1730832714195,1.0923,2454.3,2454.1,1.106]
[1730832714397,1.49977,2454.3,2454.1,1.5135]
[1730832714602,1.49977,2454.3,2454.2,0.40748]
[1730832714603,1.0923,2454.3,2454.2,0.40748]
[1730832714797,1.0796,2454.4,2454.3,0.40746]
[1730832715196,2.18330633,2454.6,2454.5,0.40743]
[1730832715395,4.76099261,2455.3,2454.5,7.2822]
[1730832715597,1.1372,2455.3,2455.0,3.17928539]
[1730832715806,41.9372,2455.3,2455.0,1.106]
[1730832716193,42.34451,2455.3,2455.0,1.106]
[1730832717207,42.34451,2455.3,2455.0,1.51334]
[1730832717508,0.40732,2455.2,2455.0,1.106]
[1730832717804,0.40733,2455.1,2455.0,1.106]
[1730832718404,41.9372,2455.3,2454.8,6.38708539]
[1730832718597,1.58025,2455.0,2454.9,1.106]
[1730832718798,5.65386,2455.0,2454.8,3.61518]
[1730832719004,2.3039,2454.9,2454.8,3.2078]
[1730832719399,2.3039,2454.9,2454.8,3.61518]
[1730832721808,1.1047,2454.9,2454.8,3.61518]
[1730832722006,4.72132,2455.2,2455.0,0.40733]
[1730832722206,5.89382,2455.2,2455.0,0.40733]
[1730832722405,0.40734,2455.1,2454.9,0.40735]
[1730832723204,5.4865,2455.2,2454.9,0.40735]
[1730832723405,0.40733,2455.1,2454.8,3.61518]
[1730832723603,5.4865,2455.2,2454.8,3.61518]
[1730832723604,0.40736,2455.0,2454.8,3.61518]
[1730832724008,0.40736,2454.9,2454.8,3.61518]
[1730832724208,5.4865,2455.2,2454.8,3.2078]
[1730832724402,0.40735,2455.0,2454.9,0.40736]
[1730832724609,0.40735,2455.0,2454.8,3.2078]
[1730832724610,0.40734,2455.1,2455.0,0.40734]
[1730832724806,0.40733,2455.1,2455.0,0.40734]
[1730832725210,5.4865,2455.2,2454.8,6.38708539]
[1730832725417,5.4865,2455.2,2455.1,0.40733]
[1730832726004,5.89381,2455.2,2455.1,0.40733]
[1730832726512,2.68601,2455.2,2455.1,0.40733]
[1730832726906,0.40733,2455.1,2455.0,0.40734]
[1730832727105,0.40735,2455.0,2454.9,1.0939]
[1730832727311,0.40736,2454.9,2454.6,2.159]
[1730832727513,1.53248,2454.8,2454.6,2.159]
[1730832727812,41.2074,2454.7,2454.6,1.5134]
[1730832728015,42.3903,2454.7,2454.6,1.5134]
[1730832728316,46.0565,2454.7,2454.1,3.17928539]
[1730832728510,3.61521,2454.6,2454.5,1.106]
[1730832728708,0.40746,2454.3,2454.2,1.106]
[1730832729112,41.20746,2454.3,2454.2,1.106]
[1730832729505,40.8,2454.3,2454.2,1.51348]
[1730832729708,41.20746,2454.3,2454.2,1.106]
[1730832730411,40.8,2454.3,2454.2,1.106]
[1730832730604,41.20746,2454.3,2454.2,1.106]
[1730832731520,0.4075,2454.1,2454.0,1.106]
[1730832731717,1.50779,2454.2,2454.0,1.106]
[1730832732121,1.50779,2454.2,2454.0,1.51351]
[1730832732817,3.22255256,2454.2,2454.0,1.51351]
[1730832733118,1.50779,2454.2,2454.0,1.51351]
[1730832733629,3.63004256,2454.2,2454.0,1.106]
[1730832734318,1.59555338,2454.1,2454.0,1.106]
[1730832734719,0.4075,2454.1,2454.0,1.106]
[1730832735117,0.4075,2454.1,2453.9,10.59752]
[1730832735312,1.59562804,2454.0,2453.7,3.2078]
[1730832735517,1.59562804,2454.0,2453.7,1.51356]
[1730832735518,2.00316804,2453.9,2453.7,1.51356]
[1730832735715,2.00317804,2453.8,2453.7,1.106]
[1730832735914,1.59562804,2453.8,2453.7,1.51356]
[1730832736120,1.1547,2453.9,2453.8,0.40755]
[1730832736121,2.75032804,2453.9,2453.8,0.40755]
[1730832736517,2.75032804,2453.9,2453.7,1.106]
[1730832736718,3.15785804,2453.9,2453.7,1.51355]
[1730832736920,2.75032804,2453.9,2453.8,0.40755]
[1730832737133,1.59562804,2453.9,2453.8,0.40755]
[1730832737423,1.59562804,2454.0,2453.8,0.40755]
[1730832737719,1.59562804,2454.0,2453.8,1.51355]
[1730832737924,1.59562804,2453.9,2453.8,1.51355]
[1730832739123,1.59562804,2453.9,2453.8,0.40755]
[1730832739327,1.59562804,2453.9,2453.8,1.51355]
[1730832740831,1.59562804,2453.9,2453.8,1.53755]
[1730832742319,1.59617794,2454.0,2453.9,0.40753]
[1730832742527,1.59617794,2454.0,2453.8,1.53754]
[1730832742719,1.59625314,2453.9,2453.8,2.66575]
[1730832742919,1.59625314,2454.0,2453.9,0.40753]
[1730832743118,2.12225256,2454.1,2453.8,2.2582]
[1730832743313,1.5963526,2454.0,2453.9,0.40753]
[1730832743521,1.5963526,2454.1,2453.9,0.40753]
[1730832743819,1.59645795,2454.1,2453.9,0.40753]
[1730832744027,1.59645795,2454.1,2454.0,0.40751]
[1730832744525,1.45387635,2454.3,2454.0,10.46228539]
[1730832744719,2.12225256,2454.5,2454.4,0.40745]
[1730832745029,5.33005256,2454.6,2454.5,0.40743]
[1730832747118,5.33005256,2454.6,2454.4,1.53744]
[1730832747324,6.45215256,2454.6,2454.4,1.53744]
[1730832747521,2.12225256,2454.5,2454.4,1.53744]
[1730832748218,4.3299,2454.6,2454.5,0.40743]
[1730832748219,6.45215256,2454.6,2454.5,0.40743]
[1730832748419,5.33005256,2454.6,2454.5,0.40743]
[1730832748721,5.33005256,2454.6,2454.5,2.71213]
[1730832750424,5.33005256,2454.6,2454.5,1.1114]
[1730832750622,5.73746256,2454.6,2454.4,1.53744]
[1730832750819,2.52968256,2454.5,2454.4,1.13]
[1730832751018,2.52968256,2454.5,2454.1,2.3785]
[1730832751019,0.40746,2454.4,2454.2,0.40748]
[1730832751227,40.8,2454.3,2454.2,1.13]
[1730832751620,41.20746,2454.3,2454.2,1.13]
[1730832752030,41.20746,2454.3,2454.2,1.53748]
[1730832752235,40.8,2454.3,2454.2,1.53748]
[1730832753020,40.8,2454.3,2454.2,4.74528]
[1730832753521,40.8,2454.3,2454.1,1.1852]
[1730832753723,0.40753,2453.9,2453.8,1.13]
[1730832754427,1.55713,2453.9,2453.8,1.53755]
[1730832756728,1.1496,2453.9,2453.8,1.53755]
[1730832757133,1.55713,2453.9,2453.8,1.53755]
[1730832758134,1.55713,2453.9,2453.8,1.13]
[1730832758531,1.55713,2453.9,2453.8,1.53755]
[1730832758728,1.55713,2453.9,2453.8,1.13]
[1730832760029,1.55713,2453.9,2453.7,1.53755]
[1730832760226,1.1496,2453.9,2453.5,2.66919]
[1730832760424,0.40758,2453.6,2453.5,0.40759]
[1730832760627,0.40758,2453.6,2453.5,1.13]
[1730832760827,0.4076,2453.5,2453.4,1.13]
[1730832761128,0.40761,2453.4,2453.2,2.3355]
[1730832761332,0.40763,2453.3,2453.2,1.53764]
[1730832761527,1.57893,2453.3,2453.2,1.13]
[1730832762424,1.57893,2453.3,2453.2,1.53765]
[1730832763126,1.1713,2453.3,2453.2,1.53765]
[1730832763328,1.57893,2453.3,2453.2,1.53765]
[1730832763528,0.40765,2453.2,2453.0,1.1321]
[1730832763828,0.40765,2453.2,2453.1,1.13]
[1730832764034,1.57894,2453.3,2453.1,1.53765]
[1730832764724,1.57894,2453.3,2453.1,1.13]
[1730832764930,1.07894,2453.3,2453.1,1.53766]
[1730832765536,1.07894,2453.3,2453.1,1.13]
[1730832765838,1.07894,2453.3,2453.1,1.53765]
[1730832766236,0.6713,2453.3,2453.2,0.40765]
[1730832766537,41.4713,2453.3,2453.2,0.40765]
[1730832766937,0.6713,2453.3,2453.2,0.40765]
[1730832767133,1.07893,2453.3,2453.1,1.53765]
[1730832767435,1.07893,2453.3,2453.2,0.40765]
[1730832767436,0.6713,2453.3,2453.2,0.40765]
[1730832768334,0.6713,2453.3,2453.1,1.13]
[1730832768533,1.07893,2453.3,2453.1,1.53765]
[1730832770832,0.40765,2453.2,2453.1,1.13]
[1730832771031,0.6713,2453.3,2453.1,1.53766]
[1730832771236,0.6713,2453.3,2453.2,0.40765]
[1730832772936,1.07893,2453.3,2453.1,1.53765]
[1730832773835,0.6713,2453.3,2453.1,1.13]
[1730832774044,0.6713,2453.3,2453.2,0.40765]
[1730832774435,0.6713,2453.3,2452.9,1.1205]
[1730832774638,1.07894,2453.3,2453.2,0.40765]
[1730832775242,0.6713,2453.3,2453.2,0.40765]
[1730832779847,41.9227,2453.4,2453.3,0.40763]
[1730832782146,42.33032,2453.4,2453.2,0.40764]
[1730832782346,43.51502,2453.4,2453.2,0.40764]
[1730832782744,43.51502,2453.4,2453.3,0.40763]
[1730832783636,43.51502,2453.4,2453.0,4.3428]
[1730832783637,43.51502,2453.4,2453.2,0.40764]
[1730832783950,43.1074,2453.4,2453.3,0.40763]
[1730832784350,2.3074,2453.4,2453.3,0.40763]
[1730832784545,2.12864689,2453.6,2453.5,0.4076]
[1730832784953,42.92864689,2453.6,2453.5,0.4076]
[1730832787249,40.8,2453.6,2453.5,0.4076]
[1730832790240,41.20758,2453.6,2453.3,2.2572]
[1730832790445,41.20758,2453.6,2453.4,0.4076]
[1730832791040,42.92864689,2453.6,2453.0,3.2078]
[1730832791247,0.40764,2453.3,2453.0,4.3428]
[1730832791452,2.3118,2453.2,2453.1,0.40766]
[1730832791957,43.1118,2453.2,2453.1,0.40766]
[1730832792149,40.8,2453.2,2453.1,0.40766]
[1730832792460,2.12864689,2453.4,2453.0,1.135]
[1730832792856,43.33627689,2453.3,2453.1,0.40766]
[1730832793061,2.53627689,2453.3,2453.1,0.40766]
[1730832793254,2.12864689,2453.3,2453.2,0.40765]
[1730832793447,2.12864689,2453.3,2453.0,1.135]
[1730832793759,2.12864689,2453.4,2453.2,0.40765]
[1730832793958,43.33625689,2453.4,2453.2,0.40765]
[1730832794255,42.92864689,2453.4,2453.0,1.135]
[1730832794457,2.12864689,2453.3,2453.0,1.135]
[1730832794757,2.12864689,2453.3,2453.2,0.40765]
[1730832796255,2.53627689,2453.3,2453.2,0.40765]
[1730832796557,4.87859537,2453.3,2453.2,0.40765]
[1730832796956,4.87859537,2453.3,2453.0,1.135]
[1730832796957,0.40763,2453.3,2453.1,0.40766]
[1730832797257,2.53523989,2453.2,2453.1,0.40766]
[1730832797459,2.12758989,2453.2,2453.1,0.40766]
[1730832797956,4.24408005,2453.3,2453.1,0.40766]
[1730832799251,3.83644005,2453.3,2453.2,0.40765]
[1730832799446,3.03089204,2453.3,2453.2,0.40765]
[1730832799648,3.43852204,2453.3,2453.2,0.40765]
[1730832800054,0.40765,2453.2,2453.1,0.40765]
[1730832800354,3.0698061,2453.2,2453.1,0.40765]
[1730832800555,2.24084204,2453.2,2453.1,0.40765]
[1730832800863,2.24084204,2453.2,2453.0,1.135]
[1730832800864,0.40766,2453.1,2453.0,1.135]
[1730832801157,4.20228827,2453.1,2453.0,1.54268]
[1730832801353,5.62782031,2453.1,2453.0,1.54268]
[1730832801751,2.96539204,2453.1,2453.0,1.54268]
[1730832801948,1.1322,2453.1,2453.0,1.54268]
[1730832802161,2.66242827,2453.2,2453.1,0.40766]
[1730832802366,2.66277275,2453.2,2453.1,0.40766]
[1730832802553,1.83447695,2453.2,2453.1,0.40766]
[1730832803159,2.6633995,2453.2,2453.1,0.40766]
[1730832803462,1.83447695,2453.2,2453.1,0.40766]
[1730832804255,1.83447695,2453.2,2453.1,7.69146]
[1730832804256,4.49897388,2453.2,2453.1,7.69146]
[1730832804560,2.13176483,2453.2,2453.1,8.84816]
[1730832804859,2.66449693,2453.4,2453.1,8.4405]
[1730832805061,2.1323902,2453.2,2453.1,8.84816]
[1730832807957,2.66449693,2453.3,2453.2,0.40765]
[1730832808158,4.49460364,2453.3,2453.2,0.40765]
[1730832808567,2.66449693,2453.3,2453.2,0.40765]
[1730832808958,1.17790692,2453.3,2453.2,4.48365]
[1730832809267,3.19801403,2453.8,2453.6,0.40757]
[1730832809458,1.81350749,2453.7,2453.3,3.18018174]
[1730832809760,1.81350749,2453.6,2453.5,0.4076]
[1730832810171,3.19801403,2454.1,2453.9,0.40753]
[1730832810465,3.19801403,2454.2,2454.0,0.40751]
[1730832810664,43.99801403,2454.2,2454.0,0.40751]
[1730832811261,40.8,2454.2,2454.0,0.40751]
[1730832811564,40.8,2454.2,2453.9,1.152]
[1730832811768,41.20749,2454.2,2453.9,1.152]
[1730832812369,41.20749,2454.2,2453.9,1.55953]
[1730832812668,40.8,2454.2,2454.0,0.40751]
[1730832813869,40.8,2454.2,2454.1,0.4075]
[1730832814167,6.81328403,2454.3,2454.1,0.4075]
[1730832814662,6.81328403,2454.3,2453.9,1.152]
[1730832814663,4.0744,2454.2,2453.9,1.152]
[1730832814862,6.40581403,2454.3,2453.9,1.152]
[1730832814863,0.40751,2454.0,2453.9,1.152]
[1730832815865,0.40754,2453.9,2453.7,1.55955]
[1730832816068,3.96734,2453.9,2453.7,1.55955]
[1730832816267,3.5598,2453.9,2453.8,0.40755]
[1730832816673,3.96733,2453.9,2453.8,0.40755]
[1730832817066,3.5598,2453.9,2453.8,0.40755]
[1730832819369,3.5598,2453.9,2453.8,1.59465]
[1730832819869,1.1569,2453.9,2453.8,5.66985]
[1730832820365,1.1569,2453.9,2453.8,5.2623]
[1730832820366,1.59746188,2453.9,2453.8,5.2623]
[1730832820570,1.59746188,2453.9,2453.8,5.66985]
[1730832820774,1.59746188,2454.0,2453.9,0.40753]
[1730832821167,1.59746188,2454.0,2453.9,4.48273]
[1730832821373,1.59746188,2454.0,2453.9,0.40753]
[1730832822177,1.59746188,2454.0,2453.9,7.66291174]
[1730832822484,1.59746188,2454.1,2454.0,0.40751]
[1730832822675,1.59746188,2454.1,2454.0,4.48271]
[1730832823377,1.59746188,2454.2,2454.0,7.283]
[1730832823576,1.59746188,2454.2,2454.1,0.4075]
[1730832823874,1.1773,2454.4,2454.2,0.40748]
[1730832823875,1.59746188,2454.3,2454.2,0.40748]
[1730832824077,1.59746188,2454.3,2454.2,1.55948]
[1730832824275,2.77476188,2454.4,2454.3,0.40746]
[1730832824467,2.77476188,2454.4,2454.3,4.48186]
[1730832824664,2.77476188,2454.4,2454.2,4.33218174]
[1730832824665,1.1773,2454.4,2454.2,1.152]
[1730832824868,2.77476188,2454.4,2454.2,1.152]
[1730832825165,2.77476188,2454.4,2454.3,0.40746]
[1730832825369,2.77476188,2454.4,2454.2,1.152]
[1730832825564,2.77476188,2454.4,2454.2,1.55947]
[1730832825769,2.77476188,2454.4,2454.3,0.40746]
[1730832826576,1.1773,2454.4,2454.3,0.40746]
[1730832826875,1.1773,2454.4,2454.2,1.55947]
[1730832827074,2.77476188,2454.4,2454.2,1.55946]
[1730832827571,1.1773,2454.4,2454.3,0.40746]
[1730832828866,1.1773,2454.4,2454.3,1.55946]
[1730832829074,1.1773,2454.4,2454.3,1.152]
[1730832829272,1.1773,2454.4,2454.3,1.55946]
[1730832830076,1.1773,2454.4,2454.3,1.152]
[1730832830278,2.77476188,2454.4,2454.3,1.55946]
[1730832830482,1.1773,2454.4,2454.3,1.55946]
[1730832833281,1.58475,2454.4,2454.3,1.55946]
[1730832833489,1.1773,2454.4,2454.3,1.55946]
[1730832839185,1.1773,2454.4,2454.3,5.63386]
[1730832841093,1.1773,2454.4,2454.3,1.152]
[1730832841094,1.58475,2454.4,2454.3,1.152]
[1730832841289,1.1773,2454.4,2454.3,1.55946]
[1730832841993,1.06249469,2454.5,2454.3,1.152]
[1730832842297,1.59746188,2454.6,2454.4,0.40744]
[1730832842298,3.77780469,2454.6,2454.4,0.40744]
[1730832843195,3.77780469,2454.6,2454.5,0.40743]
[1730832843196,3.37039469,2454.6,2454.5,0.40743]
[1730832843699,3.3703122,2454.6,2454.5,1.87478868]
[1730832844002,2.3079,2454.6,2454.5,1.87478868]
[1730832844390,2.3079,2454.6,2454.5,3.06608868]
[1730832846099,2.3079,2454.6,2454.5,1.59873]
[1730832846297,3.3703122,2454.6,2454.5,1.59873]
[1730832846504,2.3079,2454.6,2454.5,1.59873]
[1730832846991,3.3703122,2454.6,2454.5,1.59873]
[1730832847191,2.3079,2454.6,2454.5,1.59873]
[1730832847593,3.3703122,2454.6,2454.5,1.59873]
[1730832848391,3.3703122,2454.6,2454.4,3.61524]
[1730832848596,3.3703122,2454.6,2454.5,0.40743]
[1730832848794,3.3703122,2454.6,2454.4,3.2078]
[1730832848992,1.0624122,2454.5,2454.4,3.61524]
[1730832850303,1.0624122,2454.5,2454.4,0.40744]
[1730832851197,1.0624122,2454.5,2454.4,1.87479868]
[1730832851397,1.0624122,2454.5,2454.4,5.94919868]
[1730832851703,2.3079,2454.6,2454.4,5.94919868]
[1730832851704,2.1785122,2454.6,2454.4,5.54175868]
[1730832851997,2.1785122,2454.6,2454.5,0.40743]
[1730832852204,1.1161,2454.6,2454.5,0.40743]
[1730832852401,2.71356188,2454.6,2454.5,0.40743]
[1730832853497,1.1161,2454.6,2454.5,0.40743]
[1730832854200,2.71283718,2454.6,2454.5,0.40743]
[1730832854601,1.1161,2454.6,2454.5,0.40743]
[1730832855801,2.12398803,2454.7,2454.6,0.40741]
[1730832856004,3.34348803,2454.7,2454.6,1.87476868]
[1730832856607,1.2195,2454.7,2454.6,0.40741]
[1730832857504,3.34948994,2454.7,2454.6,0.40741]
[1730832857813,1.2195,2454.7,2454.6,0.40741]
[1730832859704,1.6269,2454.7,2454.6,0.40741]
[1730832859908,1.2195,2454.7,2454.6,0.40741]
[1730832861698,3.87727198,2454.7,2454.6,0.40741]
[1730832862110,1.2195,2454.7,2454.6,0.40741]
[1730832862605,0.40742,2454.6,2454.5,0.40742]
[1730832862802,2.1313218,2454.6,2454.5,0.40742]
[1730832863299,2.13136685,2454.6,2454.5,0.40743]
[1730832863503,4.28468198,2454.7,2454.4,4.67515868]
[1730832863705,2.13189436,2454.5,2454.4,5.08260868]
[1730832865913,2.65777198,2454.6,2454.5,0.40743]
[1730832866309,3.06519198,2454.6,2454.4,5.08258868]
[1730832866504,2.65777198,2454.5,2454.4,1.87478868]
[1730832867609,43.86520198,2454.5,2454.4,1.87478868]
[1730832867815,43.86520198,2454.5,2454.4,2.98278868]
[1730832870211,43.45777198,2454.5,2454.4,2.98278868]
[1730832870514,2.65777198,2454.5,2454.4,2.98278868]
[1730832871109,3.06520198,2454.5,2454.4,2.98278868]
[1730832871305,2.65777198,2454.5,2454.4,2.98278868]
[1730832871811,41.20742,2454.6,2454.5,0.40743]
[1730832873017,40.8,2454.6,2454.5,0.40743]
[1730832874620,41.20741,2454.6,2454.5,0.40743]
[1730832877413,41.20741,2454.6,2454.4,2.57535868]
[1730832877717,41.20742,2454.6,2454.5,0.40743]
[1730832880816,40.8,2454.6,2454.5,0.40743]
[1730832881021,4.42080534,2454.7,2454.6,0.40741]
[1730832881218,4.42080534,2454.7,2454.6,1.87476868]
[1730832882120,4.82821534,2454.7,2454.5,0.40742]
[1730832882913,4.82821534,2454.7,2454.6,0.40741]
[1730832884713,0.40742,2454.6,2454.5,0.40742]
[1730832885422,4.42080534,2454.7,2454.6,0.40741]
[1730832885423,4.82821534,2454.7,2454.6,0.40741]
[1730832885724,7.67707844,2454.7,2454.6,0.40741]
[1730832885918,7.67709319,2454.7,2454.6,0.40741]
[1730832887526,7.67767269,2454.7,2454.6,0.40741]
[1730832887820,7.67760435,2454.7,2454.6,0.40741]
[1730832888017,0.40741,2454.6,2454.5,1.51541]
[1730832888216,3.6092265,2454.6,2454.5,1.51541]
[1730832888416,3.2018165,2454.6,2454.5,1.51541]
[1730832888821,4.8287265,2454.7,2454.6,0.40741]
[1730832889021,4.47570627,2454.7,2454.6,0.40741]
[1730832889527,49.54345495,2454.7,2454.1,1.06878426]
[1730832889718,3.20169278,2454.3,2453.8,3.65824294]
[1730832889915,3.60915278,2454.3,2454.2,0.40747]
[1730832890219,6.45528825,2454.3,2454.2,0.40747]
[1730832890816,6.45528825,2454.3,2454.0,1.46735868]
[1730832891025,3.60696835,2454.3,2454.1,0.40749]
[1730832891317,3.60696835,2454.3,2454.0,1.46735868]
[1730832891318,3.60696835,2454.3,2454.2,0.40748]
[1730832891725,3.19950835,2454.3,2454.2,0.40748]
[1730832892229,3.60695835,2454.4,2454.2,0.40748]
[1730832892621,3.60695835,2454.4,2454.2,1.53418]
[1730832892919,1.2308,2454.3,2454.2,1.53418]
[1730832893322,1.63826,2454.3,2454.2,1.53418]
[1730832897924,1.2308,2454.3,2454.2,1.53418]
[1730832900628,1.63826,2454.3,2454.2,1.53418]
[1730832902221,1.63826,2454.3,2454.2,1.1267]
[1730832902418,1.63826,2454.3,2454.2,1.53418]
[1730832902816,1.2308,2454.3,2454.1,1.108]
[1730832903020,3.06896028,2454.2,2454.1,1.108]
[1730832903421,3.06896028,2454.2,2454.1,1.5155]
[1730832903621,3.06896028,2454.2,2454.1,1.108]
[1730832903820,0.4075,2454.1,2453.9,1.51552]
[1730832904024,3.71752599,2454.0,2453.9,1.51552]
[1730832904625,3.71752599,2454.0,2453.8,4.67515868]
[1730832904626,0.40755,2453.9,2453.8,0.40755]
[1730832904824,3.6618025,2453.9,2453.8,1.51555]
[1730832905237,1.53265,2453.9,2453.8,1.51555]
[1730832905523,3.66144527,2453.9,2453.8,1.108]
[1730832905931,3.66144527,2453.9,2453.8,1.51555]
[1730832908525,4.82684527,2453.9,2453.8,1.51555]
[1730832910323,4.82684527,2453.9,2453.8,1.108]
[1730832911227,2.12879527,2453.9,2453.8,2.98290868]
[1730832911435,2.12879527,2453.9,2453.8,10.26590868]
[1730832911436,1.59581039,2453.9,2453.8,10.26590868]
[1730832911733,3.28959527,2454.1,2453.9,0.40753]
[1730832911734,1.06394088,2454.0,2453.9,0.40753]
[1730832912030,1.59581039,2454.1,2454.0,0.40751]
[1730832912031,1.06394088,2454.1,2454.0,0.40751]
[1730832912229,1.06394088,2454.1,2454.0,4.48271]
[1730832912434,1.06394088,2454.1,2454.0,1.46735868]
[1730832912737,1.06394088,2454.1,2453.7,1.1367]